[Event "*** Titled Tuesday Blitz"]
[Site "Chess.com"]
[Date "2018.11.06"]
[Round "4"]
[White "LastGladiator1"]
[Black "Vrolijk"]
[Result "0-1"]
[WhiteElo "2628"]
[BlackElo "2658"]
[TimeControl "180+2"]
[EndTime "13:53:29 PST"]
[Termination "Vrolijk won by resignation"]

1. d4 {[%clk 0:03:01.4]} 1... Nf6 {[%clk 0:03:00.6]} 2. c4 {[%clk 0:03:00.1]}
2... e6 {[%clk 0:03:01.9]} 3. Nc3 {[%clk 0:03:01.2]} 3... Bb4 {[%clk 0:03:02.2]}
4. Nf3 {[%clk 0:03:02.3]} 4... d5 {[%clk 0:03:01]} 5. Bg5 {[%clk 0:03:03]} 5...
dxc4 {[%clk 0:03:00.1]} 6. g3 {[%clk 0:02:52.2]} 6... b5 {[%clk 0:02:53.6]} 7.
Bg2 {[%clk 0:02:51.3]} 7... Bb7 {[%clk 0:02:55]} 8. O-O {[%clk 0:02:51.9]} 8...
a6 {[%clk 0:02:51.9]} 9. a4 {[%clk 0:02:47.4]} 9... c6 {[%clk 0:02:43.9]} 10.
Ne5 {[%clk 0:02:36.2]} 10... Qb6 {[%clk 0:02:44.3]} 11. Be3 {[%clk 0:02:11.4]}
11... Nd5 {[%clk 0:02:34.5]} 12. Qc2 {[%clk 0:01:34.3]} 12... O-O {[%clk
0:02:24.8]} 13. Ne4 {[%clk 0:01:25.8]} 13... f6 {[%clk 0:02:17.8]} 14. Nf3
{[%clk 0:01:20.8]} 14... Nd7 {[%clk 0:02:18.2]} 15. Bh3 {[%clk 0:01:18.6]} 15...
Rae8 {[%clk 0:02:18.2]} 16. b3 {[%clk 0:01:02.4]} 16... c3 {[%clk 0:02:12.4]}
17. Rad1 {[%clk 0:00:23.8]} 17... Nxe3 {[%clk 0:02:04.5]} 18. fxe3 {[%clk
0:00:23.3]} 18... c5 {[%clk 0:02:06.4]} 19. Nxc3 {[%clk 0:00:17]} 19... f5
{[%clk 0:01:49.2]} 20. axb5 {[%clk 0:00:15.1]} 20... axb5 {[%clk 0:01:49.7]} 21.
Na2 {[%clk 0:00:11.3]} 21... Ba3 {[%clk 0:01:41.4]} 22. dxc5 {[%clk 0:00:08.5]}
22... Nxc5 {[%clk 0:01:34.4]} 23. b4 {[%clk 0:00:08.7]} 23... Ne4 {[%clk
0:01:28]} 24. Qb3 {[%clk 0:00:09.4]} 24... Ra8 {[%clk 0:01:29.6]} 25. Nd4 {[%clk
0:00:09.4]} 25... Bd5 {[%clk 0:01:29.7]} 26. Qb1 {[%clk 0:00:09.3]} 26... g6
{[%clk 0:01:17.9]} 27. Rd3 {[%clk 0:00:08.4]} 27... Bc4 {[%clk 0:01:16.9]} 28.
g4 {[%clk 0:00:06.8]} 28... e5 {[%clk 0:01:17.7]} 29. Nc2 {[%clk 0:00:07.1]}
29... Bxd3 {[%clk 0:01:14.4]} 30. exd3 {[%clk 0:00:09]} 30... Nd2 {[%clk
0:01:15.5]} 31. Qd1 {[%clk 0:00:10]} 31... Nxf1 {[%clk 0:01:16.8]} 32. Bxf1
{[%clk 0:00:11.4]} 32... f4 {[%clk 0:01:18]} 33. Bg2 {[%clk 0:00:12.2]} 33...
fxe3 {[%clk 0:01:18.5]} 34. Qe2 {[%clk 0:00:10.9]} 34... Rf2 {[%clk 0:01:19.1]}
35. Bd5+ {[%clk 0:00:12]} 35... Kg7 {[%clk 0:01:19.6]} 36. Qxe3 {[%clk
0:00:11.6]} 36... Qxe3 {[%clk 0:01:15.7]} 37. Nxe3 {[%clk 0:00:13.5]} 37... Raf8
{[%clk 0:01:16.6]} 38. Nf5+ {[%clk 0:00:13.2]} 38... R2xf5 {[%clk 0:01:15.4]}
39. gxf5 {[%clk 0:00:14.4]} 39... gxf5 {[%clk 0:01:17.3]} 40. Nc3 {[%clk
0:00:13.8]} 40... Bxb4 {[%clk 0:01:17.3]} 41. Nxb5 {[%clk 0:00:15.1]} 41... Rd8
{[%clk 0:01:14.5]} 42. Bc4 {[%clk 0:00:13.8]} 42... Kf6 {[%clk 0:01:15.1]} 43.
Nc7 {[%clk 0:00:14.6]} 43... Bc5+ {[%clk 0:01:14.8]} 44. Kf1 {[%clk 0:00:16]}
44... Bd4 {[%clk 0:01:10.6]} 45. h4 {[%clk 0:00:15.2]} 45... e4 {[%clk
0:01:09.6]} 46. Nd5+ {[%clk 0:00:14.2]} 46... Ke5 {[%clk 0:01:09.4]} 47. Ne7
{[%clk 0:00:15.6]} 47... Rd6 {[%clk 0:01:03.7]} 48. Ke2 {[%clk 0:00:11.5]} 48...
Rb6 {[%clk 0:01:03.2]} 49. Kd1 {[%clk 0:00:09.6]} 49... e3 {[%clk 0:01:02.3]}
50. Nd5 {[%clk 0:00:08]} 50... Rb1+ {[%clk 0:01:03]} 51. Ke2 {[%clk 0:00:09.2]}
51... Rb2+ {[%clk 0:01:04.5]} 52. Kf3 {[%clk 0:00:10.7]} 52... Rf2+ {[%clk
0:01:05.5]} 53. Kg3 {[%clk 0:00:12.2]} 53... e2 {[%clk 0:01:06.9]} 54. Ne7
{[%clk 0:00:09.7]} 54... e1=Q {[%clk 0:01:07.1]} 55. Nc6+ {[%clk 0:00:11.3]}
55... Kf6 {[%clk 0:01:08.2]} 56. Nxd4 {[%clk 0:00:13.2]} 56... Qg1+ {[%clk
0:01:08.6]} 0-1

[Event "*** Titled Tuesday Blitz"]
[Site "Chess.com"]
[Date "2018.11.06"]
[Round "4"]
[White "NateSolon"]
[Black "Korchmar_Vasiliy"]
[Result "1/2-1/2"]
[WhiteElo "2522"]
[BlackElo "2695"]
[TimeControl "180+2"]
[EndTime "13:53:37 PST"]
[Termination "Game drawn - insufficient material"]

1. e4 {[%clk 0:03:01.9]} 1... c5 {[%clk 0:03:00.9]} 2. Nc3 {[%clk 0:03:02.2]}
2... d6 {[%clk 0:03:01.6]} 3. d4 {[%clk 0:03:01.7]} 3... cxd4 {[%clk 0:02:57.6]}
4. Qxd4 {[%clk 0:03:03.6]} 4... Nf6 {[%clk 0:02:57.7]} 5. Bg5 {[%clk 0:03:01.5]}
5... Nc6 {[%clk 0:02:54.9]} 6. Qd2 {[%clk 0:03:02.3]} 6... e6 {[%clk 0:02:51.5]}
7. O-O-O {[%clk 0:03:02.6]} 7... a6 {[%clk 0:02:49.9]} 8. f4 {[%clk 0:03:00.2]}
8... h6 {[%clk 0:02:43]} 9. Bh4 {[%clk 0:02:56.2]} 9... Nxe4 {[%clk 0:02:42.7]}
10. Nxe4 {[%clk 0:02:53.1]} 10... Qxh4 {[%clk 0:02:43]} 11. Nf3 {[%clk
0:02:41.6]} 11... Qd8 {[%clk 0:02:38.2]} 12. Nxd6+ {[%clk 0:02:41.5]} 12... Bxd6
{[%clk 0:02:39.6]} 13. Qxd6 {[%clk 0:02:43.2]} 13... Qxd6 {[%clk 0:02:40.9]} 14.
Rxd6 {[%clk 0:02:44.9]} 14... Ke7 {[%clk 0:02:42.7]} 15. Rd2 {[%clk 0:02:40.2]}
15... Rd8 {[%clk 0:02:37.6]} 16. Rxd8 {[%clk 0:02:27.2]} 16... Kxd8 {[%clk
0:02:39.5]} 17. Bd3 {[%clk 0:02:22.5]} 17... Nb4 {[%clk 0:02:14.9]} 18. Rd1
{[%clk 0:02:22.9]} 18... Ke7 {[%clk 0:02:06.5]} 19. a3 {[%clk 0:02:18.1]} 19...
Nd5 {[%clk 0:02:01.7]} 20. g3 {[%clk 0:02:16.1]} 20... Bd7 {[%clk 0:01:54.5]}
21. Ne5 {[%clk 0:02:05.3]} 21... Be8 {[%clk 0:01:48.4]} 22. Be4 {[%clk
0:01:58.1]} 22... Rd8 {[%clk 0:01:49.4]} 23. c4 {[%clk 0:01:52.2]} 23... Rc8
{[%clk 0:01:43]} 24. Kd2 {[%clk 0:01:21.1]} 24... Nf6 {[%clk 0:01:40.2]} 25. Bf3
{[%clk 0:01:12.3]} 25... b5 {[%clk 0:01:37.9]} 26. cxb5 {[%clk 0:00:46]} 26...
Bxb5 {[%clk 0:01:39.8]} 27. Rc1 {[%clk 0:00:40.6]} 27... Rd8+ {[%clk 0:01:36.4]}
28. Ke3 {[%clk 0:00:39.4]} 28... Ne8 {[%clk 0:01:33.6]} 29. Bc6 {[%clk
0:00:35.3]} 29... Rc8 {[%clk 0:01:31.4]} 30. Kd2 {[%clk 0:00:21.6]} 30... Rd8+
{[%clk 0:01:25.8]} 31. Ke3 {[%clk 0:00:22.5]} 31... Rc8 {[%clk 0:01:27.1]} 32.
Kd2 {[%clk 0:00:23.8]} 32... f6 {[%clk 0:01:21.8]} 33. Bxb5 {[%clk 0:00:21.3]}
33... Rxc1 {[%clk 0:01:23.7]} 34. Kxc1 {[%clk 0:00:22.6]} 34... axb5 {[%clk
0:01:20.9]} 35. Nc6+ {[%clk 0:00:23.1]} 35... Kd6 {[%clk 0:01:20.5]} 36. Nd4
{[%clk 0:00:25]} 36... Nc7 {[%clk 0:01:14.1]} 37. Kc2 {[%clk 0:00:25.4]} 37...
Kd5 {[%clk 0:01:14.9]} 38. Kd3 {[%clk 0:00:26.3]} 38... e5 {[%clk 0:01:13.5]}
39. fxe5 {[%clk 0:00:27.5]} 39... fxe5 {[%clk 0:01:15.4]} 40. Nf5 {[%clk
0:00:27.8]} 40... Ne6 {[%clk 0:01:13.2]} 41. Ne3+ {[%clk 0:00:28.5]} 41... Kd6
{[%clk 0:01:11.3]} 42. Nf5+ {[%clk 0:00:26.7]} 42... Kd5 {[%clk 0:01:09.9]} 43.
Ne3+ {[%clk 0:00:27.9]} 43... Kd6 {[%clk 0:01:06.4]} 44. Nf5+ {[%clk 0:00:28.9]}
44... Kc5 {[%clk 0:00:34.6]} 45. Ke4 {[%clk 0:00:29.4]} 45... Ng5+ {[%clk
0:00:36.1]} 46. Kxe5 {[%clk 0:00:29.3]} 46... Nf3+ {[%clk 0:00:37.7]} 47. Kf4
{[%clk 0:00:30.2]} 47... Nxh2 {[%clk 0:00:34]} 48. Nxg7 {[%clk 0:00:31.4]} 48...
Kc4 {[%clk 0:00:33.4]} 49. Nf5 {[%clk 0:00:27.2]} 49... Kb3 {[%clk 0:00:34.5]}
50. Nd4+ {[%clk 0:00:27.5]} 50... Kxb2 {[%clk 0:00:30.2]} 51. Nxb5 {[%clk
0:00:28.2]} 51... Kb3 {[%clk 0:00:32.1]} 52. Nd4+ {[%clk 0:00:22.7]} 52... Kxa3
{[%clk 0:00:33.1]} 53. Nf5 {[%clk 0:00:24.6]} 53... Nf1 {[%clk 0:00:32.1]} 54.
g4 {[%clk 0:00:23.8]} 54... Nh2 {[%clk 0:00:33.2]} 55. Nxh6 {[%clk 0:00:24.7]}
55... Nxg4 {[%clk 0:00:34.8]} 56. Nxg4 {[%clk 0:00:26.6]} 1/2-1/2

[Event "*** Titled Tuesday Blitz"]
[Site "Chess.com"]
[Date "2018.11.06"]
[Round "4"]
[White "hypert"]
[Black "Lagmantr"]
[Result "1/2-1/2"]
[WhiteElo "2364"]
[BlackElo "2523"]
[TimeControl "180+2"]
[EndTime "13:53:52 PST"]
[Termination "Game drawn by agreement"]

1. e4 {[%clk 0:03:01.9]} 1... c5 {[%clk 0:03:00.1]} 2. Nf3 {[%clk 0:03:02.4]}
2... d6 {[%clk 0:03:01.2]} 3. Bb5+ {[%clk 0:03:02.7]} 3... Bd7 {[%clk
0:03:01.4]} 4. Bxd7+ {[%clk 0:03:03]} 4... Nxd7 {[%clk 0:03:03.3]} 5. O-O {[%clk
0:03:01.8]} 5... Ngf6 {[%clk 0:03:01.6]} 6. Re1 {[%clk 0:03:02.4]} 6... g6
{[%clk 0:03:01.3]} 7. c3 {[%clk 0:03:00.4]} 7... Bg7 {[%clk 0:03:02]} 8. d4
{[%clk 0:03:01.3]} 8... e5 {[%clk 0:02:58.1]} 9. dxc5 {[%clk 0:02:47.6]} 9...
Nxc5 {[%clk 0:02:57.9]} 10. Bg5 {[%clk 0:02:34.7]} 10... O-O {[%clk 0:02:55.7]}
11. b4 {[%clk 0:02:33.9]} 11... Ne6 {[%clk 0:02:56]} 12. Bd2 {[%clk 0:02:10]}
12... a5 {[%clk 0:02:45.6]} 13. Qb3 {[%clk 0:01:54.8]} 13... Qb6 {[%clk
0:02:27.6]} 14. bxa5 {[%clk 0:01:50.3]} 14... Qxb3 {[%clk 0:02:18.8]} 15. axb3
{[%clk 0:01:50.4]} 15... Nc5 {[%clk 0:02:19.2]} 16. b4 {[%clk 0:01:39.1]} 16...
Ncxe4 {[%clk 0:02:18.8]} 17. Be3 {[%clk 0:01:28.2]} 17... Rfc8 {[%clk
0:02:16.5]} 18. Ra3 {[%clk 0:01:28.8]} 18... Nd5 {[%clk 0:02:12.8]} 19. Rc1
{[%clk 0:01:24.2]} 19... Nxe3 {[%clk 0:01:58.6]} 20. fxe3 {[%clk 0:01:26.1]}
20... Bh6 {[%clk 0:01:59.5]} 21. c4 {[%clk 0:01:27.2]} 21... b6 {[%clk
0:01:48.4]} 22. Nbd2 {[%clk 0:01:19.9]} 22... Nxd2 {[%clk 0:01:42.3]} 23. Nxd2
{[%clk 0:01:21.8]} 23... bxa5 {[%clk 0:01:42.9]} 24. Rca1 {[%clk 0:01:11]} 24...
Rab8 {[%clk 0:01:07]} 25. bxa5 {[%clk 0:00:59.2]} 25... Rb2 {[%clk 0:01:07.5]}
26. Ne4 {[%clk 0:00:47.7]} 26... Rxc4 {[%clk 0:01:04.3]} 27. a6 {[%clk
0:00:43.2]} 27... Rxe4 {[%clk 0:00:30]} 28. a7 {[%clk 0:00:43.8]} 28... Bxe3+
{[%clk 0:00:31.3]} 29. Rxe3 {[%clk 0:00:39.9]} 29... Rxe3 {[%clk 0:00:33.2]} 30.
a8=Q+ {[%clk 0:00:40.5]} 30... Kg7 {[%clk 0:00:34.6]} 31. Qd5 {[%clk 0:00:36.8]}
31... Ree2 {[%clk 0:00:31.3]} 32. Rd1 {[%clk 0:00:26.3]} 32... e4 {[%clk
0:00:21.1]} 33. Qd4+ {[%clk 0:00:21.2]} 33... Kg8 {[%clk 0:00:19]} 34. Ra1
{[%clk 0:00:19.3]} 34... Rxg2+ {[%clk 0:00:19.4]} 35. Kf1 {[%clk 0:00:20.6]}
35... Ra2 {[%clk 0:00:13]} 36. Rxa2 {[%clk 0:00:20.6]} 36... Rxa2 {[%clk
0:00:14.9]} 37. Qxd6 {[%clk 0:00:21.1]} 37... Ra8 {[%clk 0:00:08.6]} 38. Qe5
{[%clk 0:00:21.4]} 38... Ra6 {[%clk 0:00:06.4]} 39. Qxe4 {[%clk 0:00:21.8]}
39... Rf6+ {[%clk 0:00:07.4]} 40. Kg2 {[%clk 0:00:23.2]} 40... Kg7 {[%clk
0:00:08.2]} 41. Qe5 {[%clk 0:00:24.6]} 41... h6 {[%clk 0:00:09.5]} 42. Kg3
{[%clk 0:00:25]} 42... g5 {[%clk 0:00:10.9]} 43. Kg4 {[%clk 0:00:25.8]} 43...
Kg6 {[%clk 0:00:12.4]} 44. Kg3 {[%clk 0:00:27]} 44... h5 {[%clk 0:00:13.1]} 45.
h4 {[%clk 0:00:27.6]} 45... gxh4+ {[%clk 0:00:13.1]} 46. Kxh4 {[%clk 0:00:28.3]}
46... Re6 {[%clk 0:00:10.9]} 47. Qg5+ {[%clk 0:00:28.7]} 47... Kh7 {[%clk
0:00:12.3]} 48. Kxh5 {[%clk 0:00:28.3]} 48... Rg6 {[%clk 0:00:12.7]} 49. Qf5
{[%clk 0:00:27.8]} 49... Kg7 {[%clk 0:00:13.9]} 50. Kh4 {[%clk 0:00:29.2]} 50...
Rh6+ {[%clk 0:00:14.5]} 51. Kg4 {[%clk 0:00:29.4]} 51... Rg6+ {[%clk 0:00:15.9]}
52. Kh5 {[%clk 0:00:30.5]} 52... Rh6+ {[%clk 0:00:17.2]} 53. Kg5 {[%clk
0:00:31.3]} 53... Rg6+ {[%clk 0:00:18.5]} 54. Kh4 {[%clk 0:00:28.6]} 54... Rh6+
{[%clk 0:00:19.5]} 55. Kg5 {[%clk 0:00:29.9]} 55... Rg6+ {[%clk 0:00:20.8]}
1/2-1/2

[Event "*** Titled Tuesday Blitz"]
[Site "Chess.com"]
[Date "2018.11.06"]
[Round "4"]
[White "sergoy"]
[Black "HaryKane"]
[Result "1-0"]
[WhiteElo "2756"]
[BlackElo "2576"]
[TimeControl "180+2"]
[EndTime "13:53:54 PST"]
[Termination "sergoy won by resignation"]

1. d4 {[%clk 0:03:01.5]} 1... e6 {[%clk 0:03:01.1]} 2. c4 {[%clk 0:03:01.9]}
2... Nf6 {[%clk 0:03:01.8]} 3. Nf3 {[%clk 0:03:03.1]} 3... Bb4+ {[%clk 0:03:02]}
4. Nbd2 {[%clk 0:03:03.2]} 4... b6 {[%clk 0:02:59.5]} 5. a3 {[%clk 0:03:02.6]}
5... Bxd2+ {[%clk 0:02:59.6]} 6. Qxd2 {[%clk 0:03:03.2]} 6... Bb7 {[%clk
0:03:01]} 7. e3 {[%clk 0:03:04.8]} 7... O-O {[%clk 0:03:01.3]} 8. Be2 {[%clk
0:03:06.2]} 8... Ne4 {[%clk 0:03:02.4]} 9. Qc2 {[%clk 0:03:07.3]} 9... f5 {[%clk
0:03:03.9]} 10. b4 {[%clk 0:03:07.4]} 10... d6 {[%clk 0:03:02.8]} 11. Bb2 {[%clk
0:03:08.2]} 11... Nd7 {[%clk 0:03:02.9]} 12. O-O {[%clk 0:03:08.7]} 12... a5
{[%clk 0:03:01]} 13. d5 {[%clk 0:03:07]} 13... exd5 {[%clk 0:02:54.7]} 14. cxd5
{[%clk 0:03:05.2]} 14... Bxd5 {[%clk 0:02:44.1]} 15. Rfd1 {[%clk 0:03:04.3]}
15... Bb7 {[%clk 0:02:33.2]} 16. Nd4 {[%clk 0:03:02.2]} 16... Qh4 {[%clk
0:02:27.5]} 17. g3 {[%clk 0:02:56.5]} 17... Qh6 {[%clk 0:02:01.6]} 18. Qxc7
{[%clk 0:02:54.2]} 18... Nxf2 {[%clk 0:01:22.7]} 19. Qxb7 {[%clk 0:02:16.3]}
19... Nxd1 {[%clk 0:01:21.4]} 20. Rxd1 {[%clk 0:02:09.5]} 20... Qxe3+ {[%clk
0:01:21.5]} 21. Kg2 {[%clk 0:02:10.7]} 21... Ne5 {[%clk 0:01:03.7]} 22. Bc1
{[%clk 0:02:05.2]} 22... Qe4+ {[%clk 0:00:57.7]} 23. Qxe4 {[%clk 0:02:00]} 23...
fxe4 {[%clk 0:00:59.6]} 24. b5 {[%clk 0:02:00.7]} 24... Rac8 {[%clk 0:00:59.2]}
25. Bf4 {[%clk 0:01:45.6]} 25... Rc3 {[%clk 0:00:59.7]} 26. Ne6 {[%clk
0:01:46.4]} 26... Rc2 {[%clk 0:00:37.7]} 27. Kf2 {[%clk 0:01:24.7]} 27... Nd3+
{[%clk 0:00:29.1]} 28. Ke3 {[%clk 0:01:23]} 28... Nxf4 {[%clk 0:00:25.7]} 29.
gxf4 {[%clk 0:01:20.9]} 29... Rc3+ {[%clk 0:00:23.4]} 30. Kxe4 {[%clk
0:01:11.1]} 30... Re8 {[%clk 0:00:23.4]} 31. f5 {[%clk 0:01:10.1]} 31... g6
{[%clk 0:00:22.2]} 32. Rxd6 {[%clk 0:01:04.7]} 32... Kf7 {[%clk 0:00:20]} 33.
Kd4 {[%clk 0:01:00.8]} 33... Rxa3 {[%clk 0:00:20.5]} 34. Ng5+ {[%clk 0:01:01.3]}
34... Ke7 {[%clk 0:00:21.5]} 35. Rxb6 {[%clk 0:00:41.8]} 35... gxf5 {[%clk
0:00:22.7]} 36. Rb7+ {[%clk 0:00:34.1]} 36... Kf6 {[%clk 0:00:22.8]} 37. Nxh7+
{[%clk 0:00:33.9]} 37... Kg6 {[%clk 0:00:24.1]} 38. Bh5+ {[%clk 0:00:34.6]}
38... Kxh5 {[%clk 0:00:23.5]} 39. Nf6+ {[%clk 0:00:35.6]} 39... Kg5 {[%clk
0:00:20.9]} 40. Nxe8 {[%clk 0:00:37.5]} 40... Ra1 {[%clk 0:00:22.1]} 41. b6
{[%clk 0:00:35.5]} 41... a4 {[%clk 0:00:23.3]} 42. Rg7+ {[%clk 0:00:34.3]} 42...
Kf4 {[%clk 0:00:24]} 43. Ra7 {[%clk 0:00:33.4]} 43... a3 {[%clk 0:00:23.9]} 44.
b7 {[%clk 0:00:28.2]} 44... Rb1 {[%clk 0:00:25.1]} 45. Nd6 {[%clk 0:00:27]}
45... Rb3 {[%clk 0:00:25.7]} 46. Kc4 {[%clk 0:00:26]} 46... Rb6 {[%clk
0:00:24.9]} 47. Rxa3 {[%clk 0:00:23.7]} 47... Ke5 {[%clk 0:00:26.3]} 48. Kc5
{[%clk 0:00:23.3]} 48... Rb1 {[%clk 0:00:26.6]} 49. Nb5 {[%clk 0:00:22.6]} 1-0

[Event "*** Titled Tuesday Blitz"]
[Site "Chess.com"]
[Date "2018.11.06"]
[Round "4"]
[White "PawnEatingZombie"]
[Black "twitchTriniCupid"]
[Result "1/2-1/2"]
[WhiteElo "2116"]
[BlackElo "2244"]
[TimeControl "180+2"]
[EndTime "13:53:59 PST"]
[Termination "Game drawn by repetition"]

1. d4 {[%clk 0:03:01.9]} 1... Nf6 {[%clk 0:03:00.9]} 2. c4 {[%clk 0:03:03.2]}
2... e6 {[%clk 0:03:02.2]} 3. Nc3 {[%clk 0:03:04.6]} 3... Bb4 {[%clk 0:03:03.5]}
4. Qc2 {[%clk 0:03:06]} 4... d5 {[%clk 0:03:00.4]} 5. cxd5 {[%clk 0:03:05.1]}
5... exd5 {[%clk 0:03:00.7]} 6. Bf4 {[%clk 0:03:05.5]} 6... O-O {[%clk
0:03:00.3]} 7. e3 {[%clk 0:03:06.6]} 7... c5 {[%clk 0:03:00.1]} 8. dxc5 {[%clk
0:03:06.4]} 8... Nc6 {[%clk 0:02:44.8]} 9. Nf3 {[%clk 0:03:03.9]} 9... Qa5
{[%clk 0:02:37.4]} 10. Bd3 {[%clk 0:02:57.8]} 10... d4 {[%clk 0:02:29.1]} 11.
Nxd4 {[%clk 0:02:46.9]} 11... Nxd4 {[%clk 0:02:26.6]} 12. exd4 {[%clk
0:02:47.9]} 12... Re8+ {[%clk 0:02:25.6]} 13. Be3 {[%clk 0:02:45.7]} 13... Ng4
{[%clk 0:02:01.5]} 14. O-O {[%clk 0:02:45.2]} 14... Qc7 {[%clk 0:01:49.2]} 15.
g3 {[%clk 0:02:28.2]} 15... Rxe3 {[%clk 0:01:49]} 16. Nd5 {[%clk 0:02:00.1]}
16... Qd8 {[%clk 0:01:45.9]} 17. Nxe3 {[%clk 0:01:46.5]} 17... Qxd4 {[%clk
0:01:01.3]} 18. Bxh7+ {[%clk 0:01:27]} 18... Kf8 {[%clk 0:01:01.7]} 19. Qe4
{[%clk 0:01:16.9]} 19... Bxc5 {[%clk 0:00:54]} 20. Nxg4 {[%clk 0:01:10.5]} 20...
Bxg4 {[%clk 0:00:49.8]} 21. Bf5 {[%clk 0:00:56.4]} 21... Bh5 {[%clk 0:00:33.8]}
22. Qxd4 {[%clk 0:00:37.6]} 22... Bxd4 {[%clk 0:00:35.7]} 23. Rac1 {[%clk
0:00:31.1]} 23... Bf3 {[%clk 0:00:24.7]} 24. Rc8+ {[%clk 0:00:27.1]} 24... Rxc8
{[%clk 0:00:25.2]} 25. Bxc8 {[%clk 0:00:28.8]} 25... b6 {[%clk 0:00:21.7]} 26.
b3 {[%clk 0:00:27.7]} 26... Ke7 {[%clk 0:00:21.2]} 27. Re1+ {[%clk 0:00:22.5]}
27... Kd6 {[%clk 0:00:21.9]} 28. Bh3 {[%clk 0:00:21.5]} 28... Bd5 {[%clk
0:00:20.7]} 29. Bg2 {[%clk 0:00:22.1]} 29... Be6 {[%clk 0:00:21.7]} 30. h4
{[%clk 0:00:21.6]} 30... g6 {[%clk 0:00:22.6]} 31. Bf3 {[%clk 0:00:21]} 31... a5
{[%clk 0:00:23.4]} 32. Kg2 {[%clk 0:00:21.5]} 32... b5 {[%clk 0:00:24.5]} 33.
Rd1 {[%clk 0:00:21.2]} 33... Kc5 {[%clk 0:00:25.2]} 34. Rd2 {[%clk 0:00:19.3]}
34... Bc3 {[%clk 0:00:24.2]} 35. Re2 {[%clk 0:00:17.5]} 35... Kb4 {[%clk
0:00:22.4]} 36. g4 {[%clk 0:00:17.9]} 36... Ka3 {[%clk 0:00:23]} 37. h5 {[%clk
0:00:18.5]} 37... gxh5 {[%clk 0:00:23.7]} 38. gxh5 {[%clk 0:00:19.5]} 38... Bb2
{[%clk 0:00:23.7]} 39. Bc6 {[%clk 0:00:14.2]} 39... b4 {[%clk 0:00:20.8]} 40. h6
{[%clk 0:00:11.4]} 40... Bf5 {[%clk 0:00:19.2]} 41. Be4 {[%clk 0:00:11.1]} 41...
Be6 {[%clk 0:00:18.7]} 42. Rxb2 {[%clk 0:00:07.3]} 42... Kxb2 {[%clk 0:00:20.6]}
43. h7 {[%clk 0:00:08.2]} 43... Kxa2 {[%clk 0:00:22.1]} 44. h8=Q {[%clk
0:00:09.4]} 44... Kxb3 {[%clk 0:00:24]} 45. Qd4 {[%clk 0:00:09.1]} 45... a4
{[%clk 0:00:24.4]} 46. Qd3+ {[%clk 0:00:09.6]} 46... Ka2 {[%clk 0:00:25]} 47.
Bd5+ {[%clk 0:00:10.9]} 47... b3 {[%clk 0:00:21.6]} 48. Bxe6 {[%clk 0:00:11.1]}
48... fxe6 {[%clk 0:00:22.6]} 49. Qc3 {[%clk 0:00:08]} 49... a3 {[%clk 0:00:22]}
50. Kf3 {[%clk 0:00:06.6]} 50... b2 {[%clk 0:00:23]} 51. Qc4+ {[%clk 0:00:07]}
51... Ka1 {[%clk 0:00:24]} 52. Qc3 {[%clk 0:00:06.9]} 52... Ka2 {[%clk
0:00:23.3]} 53. Qc4+ {[%clk 0:00:07.2]} 53... Ka1 {[%clk 0:00:24.7]} 54. Qc3
{[%clk 0:00:07.6]} 54... Ka2 {[%clk 0:00:24.7]} 55. Qc4+ {[%clk 0:00:08.6]}
55... Ka1 {[%clk 0:00:26]} 1/2-1/2

[Event "*** Titled Tuesday Blitz"]
[Site "Chess.com"]
[Date "2018.11.06"]
[Round "4"]
[White "xamax2000"]
[Black "GMHess"]
[Result "0-1"]
[WhiteElo "2486"]
[BlackElo "2672"]
[TimeControl "180+2"]
[EndTime "13:54:00 PST"]
[Termination "GMHess won by resignation"]

1. e4 {[%clk 0:03:01.9]} 1... d6 {[%clk 0:03:00.6]} 2. d4 {[%clk 0:03:00.8]}
2... Nf6 {[%clk 0:03:01.3]} 3. Nc3 {[%clk 0:03:02.1]} 3... c6 {[%clk 0:03:02.5]}
4. f4 {[%clk 0:03:02.6]} 4... Qa5 {[%clk 0:03:02.9]} 5. Bd3 {[%clk 0:03:03.8]}
5... d5 {[%clk 0:03:04.1]} 6. e5 {[%clk 0:02:49.8]} 6... Ne4 {[%clk 0:03:04.7]}
7. Bxe4 {[%clk 0:02:51.3]} 7... dxe4 {[%clk 0:03:05.8]} 8. Qe2 {[%clk
0:02:52.9]} 8... Na6 {[%clk 0:03:03]} 9. Bd2 {[%clk 0:02:10.3]} 9... Nb4 {[%clk
0:02:46.5]} 10. Kd1 {[%clk 0:01:05]} 10... e3 {[%clk 0:02:23.1]} 11. Qxe3 {[%clk
0:00:58.4]} 11... Bf5 {[%clk 0:02:22.9]} 12. Ne4 {[%clk 0:00:59.1]} 12... O-O-O
{[%clk 0:01:23.3]} 13. Nf3 {[%clk 0:00:32.4]} 13... Qa4 {[%clk 0:00:51.7]} 14.
b3 {[%clk 0:00:27.2]} 14... Qa3 {[%clk 0:00:41]} 15. Re1 {[%clk 0:00:21.3]}
15... Nxa2 {[%clk 0:00:24.1]} 16. Ke2 {[%clk 0:00:18]} 16... Qb2 {[%clk
0:00:17.1]} 17. Nc3 {[%clk 0:00:09.4]} 17... Nxc3+ {[%clk 0:00:15.8]} 18. Qxc3
{[%clk 0:00:11.3]} 18... Qxc3 {[%clk 0:00:11.1]} 19. Bxc3 {[%clk 0:00:13.2]}
19... a6 {[%clk 0:00:12.1]} 20. Ra2 {[%clk 0:00:14.6]} 20... e6 {[%clk
0:00:13.3]} 21. Ng5 {[%clk 0:00:14]} 21... Rd7 {[%clk 0:00:12.8]} 22. Ke3 {[%clk
0:00:15]} 22... h6 {[%clk 0:00:13.8]} 23. Ne4 {[%clk 0:00:16.3]} 23... Be7
{[%clk 0:00:12.8]} 24. Ba5 {[%clk 0:00:17.5]} 24... Rd5 {[%clk 0:00:10.1]} 25.
c3 {[%clk 0:00:18]} 25... g5 {[%clk 0:00:08.8]} 26. h3 {[%clk 0:00:14.2]} 26...
gxf4+ {[%clk 0:00:09.5]} 27. Kxf4 {[%clk 0:00:16.1]} 27... h5 {[%clk 0:00:09.3]}
28. Nf6 {[%clk 0:00:15.6]} 28... Bxf6 {[%clk 0:00:10.1]} 29. exf6 {[%clk
0:00:17.5]} 29... Rg8 {[%clk 0:00:08.7]} 30. Re5 {[%clk 0:00:18.9]} 30... Bb1
{[%clk 0:00:07.5]} 31. Rb2 {[%clk 0:00:18.4]} 31... Bg6 {[%clk 0:00:05.3]} 32.
Bb6 {[%clk 0:00:19.1]} 32... Kd7 {[%clk 0:00:06.3]} 33. Bc5 {[%clk 0:00:19.8]}
33... Kc7 {[%clk 0:00:06.7]} 34. c4 {[%clk 0:00:20.9]} 34... Rd7 {[%clk
0:00:08]} 35. Rd2 {[%clk 0:00:20.3]} 35... b6 {[%clk 0:00:05.7]} 36. Be7 {[%clk
0:00:21.8]} 36... Kb7 {[%clk 0:00:06]} 37. b4 {[%clk 0:00:17.2]} 37... Ra8
{[%clk 0:00:05.8]} 38. Ra2 {[%clk 0:00:16.7]} 38... Rxd4+ {[%clk 0:00:05.8]} 39.
Kg5 {[%clk 0:00:18.3]} 39... Rxc4 {[%clk 0:00:06.9]} 40. Rd2 {[%clk 0:00:18.2]}
40... a5 {[%clk 0:00:05.3]} 41. Rd7+ {[%clk 0:00:18.9]} 41... Ka6 {[%clk
0:00:06.9]} 42. bxa5 {[%clk 0:00:20.1]} 42... bxa5 {[%clk 0:00:07.7]} 43. Bc5
{[%clk 0:00:16.2]} 43... a4 {[%clk 0:00:07.6]} 44. Rc7 {[%clk 0:00:15.3]} 44...
Re4 {[%clk 0:00:05.2]} 45. Rxc6+ {[%clk 0:00:14.9]} 45... Kb5 {[%clk 0:00:05.4]}
46. Rb6+ {[%clk 0:00:16.1]} 46... Ka5 {[%clk 0:00:05.6]} 47. Rxe4 {[%clk
0:00:15.1]} 47... Bxe4 {[%clk 0:00:06.7]} 48. Rb7 {[%clk 0:00:15.7]} 48... Bxb7
{[%clk 0:00:07.6]} 49. Kh6 {[%clk 0:00:16.1]} 49... Kb5 {[%clk 0:00:08.8]} 50.
Be7 {[%clk 0:00:16]} 50... a3 {[%clk 0:00:08.9]} 51. Bxa3 {[%clk 0:00:17.4]}
51... Rxa3 {[%clk 0:00:10.8]} 52. Kg7 {[%clk 0:00:19.3]} 52... Bxg2 {[%clk
0:00:11.4]} 53. Kxf7 {[%clk 0:00:20.8]} 53... Bxh3 {[%clk 0:00:13.3]} 54. Ke7
{[%clk 0:00:22]} 54... Ra7+ {[%clk 0:00:14.2]} 55. Kd6 {[%clk 0:00:22.6]} 55...
Rf7 {[%clk 0:00:14.9]} 56. Ke5 {[%clk 0:00:24.5]} 0-1